bitfinex/quotes_SOLUSD_20250705
["timestamp","ask_amount","ask_price","bid_price","bid_amount"]
[1751713223076,5.0568611,148.15,148.13,6.75082697]
[1751713223294,3.8228639,148.17,148.13,6.75082697]
[1751713223492,5.05685803,148.16,148.13,6.75082697]
[1751713223670,5.05685803,148.15,148.13,6.75082697]
[1751713223867,5.05685803,148.14,148.13,6.75082697]
[1751713225101,5.05685803,148.14,148.13,10.57369087]
[1751713225296,5.05685803,148.17,148.13,29.22333973]
[1751713225497,5.05685803,148.16,148.15,3.8228639]
[1751713225681,5.05685803,148.16,148.15,10.57277952]
[1751713226397,5.05685803,148.16,148.15,6.74991562]
[1751713234805,5.05685803,148.16,148.15,10.57277952]
[1751713257533,5.05685803,148.16,148.14,3.8228639]
[1751713257736,10.18747364,148.19,148.14,3.8228639]
[1751713257737,5.05685803,148.15,148.14,3.8228639]
[1751713260336,5.05685803,148.15,148.14,36.57323517]
[1751713260710,5.05685803,148.15,148.14,32.75037127]
[1751713260907,5.05685803,148.15,148.13,6.7506265]
[1751713261109,3.8228639,148.17,148.13,6.7506265]
[1751713261315,5.05972666,148.16,148.13,6.7506265]
[1751713261523,5.05972666,148.15,148.13,6.7506265]
[1751713261714,3.8228639,148.17,148.13,6.7506265]
[1751713261927,5.06002521,148.16,148.13,6.7506265]
[1751713262125,5.06002521,148.15,148.13,6.7506265]
[1751713262329,3.8228639,148.16,148.13,6.7506265]
[1751713262535,5.06037423,148.15,148.13,6.7506265]
[1751713262837,3.8228639,148.16,148.13,6.7506265]
[1751713263054,5.06037423,148.15,148.13,6.7506265]
[1751713263214,3.8228639,148.16,148.13,6.7506265]
[1751713263413,5.06040466,148.15,148.13,6.7506265]
[1751713263627,5.06040466,148.14,148.13,6.7506265]
[1751713265440,5.06040466,148.14,148.12,36.57395007]
[1751713265631,5.06228161,148.13,148.12,36.57395007]
[1751713266029,5.06228161,148.13,148.12,32.75108617]
[1751713269946,5.06228161,148.13,148.12,36.57395007]
[1751713273543,13.05387307,148.17,148.12,36.57395007]
[1751713273747,5.05916854,148.16,148.14,3.8228639]
[1751713273963,5.3228639,148.18,148.14,3.8228639]
[1751713273964,5.05916854,148.15,148.14,3.8228639]
[1751713275144,5.05916854,148.15,148.14,10.57323517]
[1751713276552,5.05916854,148.15,148.14,6.75037127]
[1751713276740,5.05916854,148.15,148.14,10.57323517]
[1751713282264,5.05916854,148.15,148.13,10.57369087]
[1751713282554,5.05916854,148.14,148.13,10.57369087]
[1751713288962,5.05916854,148.14,148.13,6.75082697]
[1751713289134,5.05916854,148.14,148.13,10.57369087]
[1751713290366,5.05916854,148.14,148.13,29.22333973]
[1751713290549,0.06,148.19,148.17,3.8228639]
[1751713290757,0.06,148.19,148.18,3.8228639]
[1751713291548,0.06,148.19,148.18,10.57141296]
[1751713307670,0.06,148.19,148.18,55.36322339]
[1751713307855,0.06,148.19,148.18,56.92892339]
[1751713310878,0.06,148.19,148.18,56.78676182]
[1751713321779,0.06,148.19,148.18,90.84892339]
[1751713323761,0.06,148.19,148.18,64.84892339]
[1751713323967,0.06,148.24,148.21,26.0]
[1751713324162,0.06,148.24,148.23,3.8228639]
[1751713324564,0.06,148.24,148.23,29.8228639]
[1751713325376,5.03420643,148.3,148.24,0.14216157]
[1751713325578,5.03420643,148.32,148.27,26.0]
[1751713325769,5.03420643,148.32,148.28,3.8228639]
[1751713326093,8.85707033,148.33,148.28,10.56648412]
[1751713326393,3.8228639,148.33,148.28,10.56648412]
[1751713327395,11.97574428,148.34,148.28,10.56648412]
[1751713327586,8.85707033,148.33,148.28,10.56648412]
[1751713327895,3.8228639,148.33,148.28,10.56648412]
[1751713331294,3.8228639,148.33,148.29,10.56629227]
[1751713331494,9.05707033,148.34,148.29,10.56629227]
[1751713334198,3.8228639,148.33,148.29,10.56629227]
[1751713336096,5.23420643,148.34,148.29,10.56629227]
[1751713336402,3.8228639,148.33,148.29,10.56629227]
[1751713339284,9.05707033,148.34,148.29,10.56629227]
[1751713342021,5.23420643,148.34,148.29,10.56629227]
[1751713342195,3.8228639,148.33,148.29,10.56629227]
[1751713343406,3.8228639,148.32,148.29,6.74342837]
[1751713344408,3.8228639,148.32,148.28,6.74399784]
[1751713347904,11.97548797,148.34,148.31,3.8228639]
[1751713347905,0.2,148.34,148.31,3.8228639]
[1751713351710,0.2,148.34,148.31,10.56509033]
[1751713353014,0.2,148.34,148.31,6.74222643]
[1751713359219,4.0228639,148.34,148.31,6.74222643]
[1751713360726,0.2,148.34,148.31,6.74222643]
[1751713360928,4.0228639,148.34,148.31,6.74222643]
[1751713364234,9.04604494,148.34,148.31,6.74222643]
[1751713366436,5.02318104,148.33,148.31,6.74222643]
[1751713366802,5.02318104,148.33,148.32,3.8228639]
[1751713367218,5.22318104,148.34,148.32,3.8228639]
[1751713367519,5.02318104,148.33,148.32,3.8228639]
[1751713367919,5.02318104,148.33,148.32,10.56504297]
[1751713372134,5.02318104,148.33,148.31,10.56549757]
[1751713372434,0.2,148.34,148.31,10.56549757]
[1751713372638,5.0516056,148.33,148.31,10.56549757]
[1751713372841,0.2,148.34,148.31,10.56549757]
[1751713373033,5.0516056,148.33,148.31,10.56549757]
[1751713373334,0.2,148.34,148.31,10.56549757]
[1751713373639,5.05162984,148.33,148.31,10.56549757]
[1751713373840,0.2,148.34,148.31,10.56549757]
[1751713374136,5.05162984,148.33,148.31,10.56549757]
[1751713374341,0.2,148.34,148.31,10.56549757]
[1751713374517,5.05170446,148.33,148.31,10.56549757]
[1751713374715,0.2,148.34,148.33,6.74172453]
[1751713375026,5.2517011,148.34,148.33,6.74172453]
[1751713377030,5.2517011,148.34,148.31,10.56549757]
[1751713377235,5.0517011,148.33,148.31,10.56549757]
[1751713377430,0.2,148.34,148.31,10.56549757]
[1751713377630,5.05165231,148.33,148.31,10.56549757]
[1751713377843,0.2,148.34,148.31,10.56549757]
[1751713378019,5.05165231,148.33,148.31,10.56549757]
[1751713378219,0.2,148.34,148.31,10.56549757]
[1751713378430,5.05165231,148.33,148.31,10.56549757]
[1751713378626,0.2,148.34,148.31,10.56549757]
[1751713378945,5.05161478,148.33,148.31,10.56549757]
[1751713379147,0.2,148.34,148.31,10.56549757]
[1751713379452,5.05161478,148.33,148.31,10.56549757]
[1751713379746,0.2,148.34,148.31,10.56549757]
[1751713380044,5.05167165,148.33,148.31,10.56549757]
[1751713380226,0.2,148.34,148.31,10.56549757]
[1751713380529,5.05191088,148.33,148.31,10.56549757]
[1751713380733,0.2,148.34,148.31,10.56549757]
[1751713380933,5.05191088,148.33,148.31,10.56549757]
[1751713381136,0.2,148.34,148.31,10.56549757]
[1751713381450,5.05191088,148.33,148.31,10.56549757]
[1751713381657,0.2,148.34,148.31,10.56549757]
[1751713381830,5.05172784,148.33,148.31,10.56549757]
[1751713382030,0.2,148.34,148.31,10.56549757]
[1751713382339,5.05172784,148.33,148.31,10.56549757]
[1751713382538,0.2,148.34,148.31,10.56549757]
[1751713382744,5.05160564,148.33,148.31,10.56549757]
[1751713383050,0.2,148.34,148.31,10.56549757]
[1751713383234,5.05160564,148.33,148.31,10.56549757]
[1751713383434,0.2,148.34,148.31,10.56549757]
[1751713383750,5.05153981,148.33,148.31,10.56549757]
[1751713384053,0.2,148.34,148.31,10.56549757]
[1751713384238,5.05153981,148.33,148.31,10.56549757]
[1751713384547,0.2,148.34,148.31,10.56549757]
[1751713384737,5.05152929,148.33,148.31,10.56549757]
[1751713385046,0.2,148.34,148.31,10.56549757]
[1751713385221,5.05152929,148.33,148.31,10.56549757]
[1751713385425,0.2,148.34,148.31,10.56549757]
[1751713385625,5.05157092,148.33,148.31,10.56549757]
[1751713385825,0.2,148.34,148.31,10.56549757]
[1751713386059,5.05157092,148.33,148.31,10.56549757]
[1751713386360,0.2,148.34,148.31,10.56549757]
[1751713386675,5.0516699,148.33,148.31,10.56549757]
[1751713386826,0.2,148.34,148.31,10.56549757]
[1751713387026,5.0516699,148.33,148.31,10.56549757]
[1751713387249,0.2,148.34,148.31,10.56549757]
[1751713387434,5.05155691,148.33,148.31,10.56549757]
[1751713387635,0.2,148.34,148.31,10.56549757]
[1751713387859,5.05182905,148.33,148.31,10.56549757]
[1751713388042,0.2,148.34,148.31,10.56549757]
[1751713388244,5.05183073,148.33,148.31,10.56549757]
[1751713388454,0.2,148.34,148.31,10.56549757]
[1751713388748,5.05204576,148.33,148.31,6.74263367]
[1751713389044,0.2,148.34,148.31,10.56549757]
[1751713389245,5.05204576,148.33,148.31,10.56549757]
[1751713389431,0.2,148.34,148.31,10.56549757]
[1751713389631,5.0523304,148.33,148.31,10.56549757]
[1751713389834,0.2,148.34,148.31,10.56549757]
[1751713390149,5.0523304,148.33,148.31,10.56549757]
[1751713390348,0.2,148.34,148.31,10.56549757]
[1751713390648,5.05269191,148.33,148.31,10.56549757]
[1751713390833,0.2,148.34,148.31,10.56549757]
[1751713391031,5.05269191,148.33,148.31,6.74263367]
[1751713391251,0.2,148.34,148.31,10.56549757]
[1751713391459,5.05313303,148.33,148.31,10.56549757]
[1751713391757,0.2,148.34,148.31,10.56549757]
[1751713391955,5.05313303,148.33,148.31,10.56549757]
[1751713392255,0.2,148.34,148.31,10.56549757]
[1751713392448,5.05366807,148.33,148.31,10.56549757]
[1751713392652,0.2,148.34,148.31,10.56549757]
[1751713392851,5.05366639,148.33,148.31,10.56549757]
[1751713393035,0.2,148.34,148.31,10.56549757]
[1751713393233,5.05366639,148.33,148.31,10.56549757]
[1751713393557,0.2,148.34,148.31,10.56549757]
[1751713393741,5.05373395,148.33,148.31,10.56549757]
[1751713393942,0.2,148.34,148.31,10.56549757]
[1751713394142,5.05373395,148.33,148.31,10.56549757]
[1751713394344,0.2,148.34,148.31,10.56549757]
[1751713394578,5.05383598,148.33,148.31,10.56549757]
[1751713394749,0.2,148.34,148.31,10.56549757]
[1751713394952,5.05383598,148.33,148.31,10.56549757]
[1751713395138,0.2,148.34,148.31,10.56549757]
[1751713395337,5.0538137,148.33,148.31,10.56549757]
[1751713395539,0.2,148.34,148.31,10.56549757]
[1751713395738,5.05397152,148.33,148.31,10.56549757]
[1751713395960,0.2,148.34,148.31,10.56549757]
[1751713396259,5.05397152,148.33,148.31,10.56549757]
[1751713396557,0.2,148.34,148.31,10.56549757]
[1751713396758,5.05414044,148.33,148.31,10.56549757]
[1751713396934,0.2,148.34,148.31,10.56549757]
[1751713397134,5.05413937,148.33,148.31,6.74263367]
[1751713397562,0.2,148.34,148.31,6.74263367]
[1751713397754,5.05409055,148.33,148.31,6.74263367]
[1751713397953,0.2,148.34,148.31,6.74263367]
[1751713398156,5.05408887,148.33,148.31,6.74263367]
[1751713398456,0.2,148.34,148.31,6.74263367]
[1751713398656,5.05415622,148.33,148.31,6.74263367]
[1751713398855,0.2,148.34,148.31,6.74263367]
[1751713399067,5.05415622,148.33,148.31,6.74263367]
[1751713399266,0.2,148.34,148.31,6.74263367]
[1751713399460,5.05416469,148.33,148.31,10.56549757]
[1751713399764,0.2,148.34,148.31,6.74263367]
[1751713399952,5.05473975,148.33,148.31,6.74263367]
[1751713400154,5.05473975,148.32,148.31,6.74263367]
[1751713404274,5.05484323,148.32,148.31,6.74263367]
[1751713404769,5.05484323,148.32,148.31,10.56549757]
[1751713409176,0.2,148.34,148.31,10.56549757]
[1751713409380,5.054488,148.33,148.31,10.56549757]
[1751713409604,0.2,148.34,148.31,10.56549757]
[1751713409773,5.05459827,148.33,148.31,10.56549757]
[1751713410080,0.2,148.34,148.31,10.56549757]
[1751713410266,5.05459827,148.33,148.31,10.56549757]
[1751713410470,0.2,148.34,148.31,10.56549757]
[1751713410671,5.05474711,148.33,148.31,10.56549757]
[1751713410871,0.2,148.34,148.31,10.56549757]
[1751713411074,5.05474711,148.33,148.31,10.56549757]
[1751713411281,0.2,148.34,148.31,6.74263367]
[1751713411485,5.05495844,148.33,148.31,6.74263367]
[1751713411689,5.05495844,148.32,148.31,6.74263367]
[1751713433401,5.05495844,148.32,148.3,32.74289784]
[1751713433578,5.05614321,148.31,148.3,26.0]
[1751713433787,4.0228639,148.34,148.3,32.74291584]
[1751713434105,5.05622316,148.33,148.3,32.74291584]
[1751713434286,5.05622316,148.32,148.3,32.74291584]
[1751713434609,4.0228639,148.34,148.3,32.74291584]
[1751713434804,5.05625872,148.33,148.3,32.74291584]
[1751713434985,5.05625872,148.32,148.3,32.74291584]
[1751713435179,4.0228639,148.34,148.3,32.74291584]
[1751713435381,5.05630532,148.33,148.3,36.56577974]
[1751713435697,5.05630532,148.32,148.3,36.56577974]
[1751713435874,0.2,148.34,148.3,36.56577974]
[1751713436079,5.05611907,148.33,148.3,36.56577974]
[1751713436285,5.05611907,148.32,148.3,36.56577974]
[1751713436499,4.0228639,148.34,148.3,36.56577974]
[1751713436678,5.05623204,148.33,148.3,36.56577974]
[1751713436885,5.05623204,148.32,148.3,36.56577974]
[1751713437084,4.0228639,148.34,148.3,36.56577974]
[1751713437300,5.05623204,148.33,148.3,36.56577974]
[1751713437501,5.05623204,148.32,148.3,36.56577974]
[1751713437796,4.0228639,148.34,148.3,36.56577974]
[1751713437997,5.05635434,148.33,148.3,36.56577974]
[1751713438196,5.05635434,148.32,148.3,36.56577974]
[1751713438399,4.0228639,148.34,148.3,36.56577974]
[1751713438701,5.05648863,148.33,148.3,36.56577974]
[1751713438902,5.05648863,148.32,148.3,36.56577974]
[1751713439082,4.0228639,148.34,148.3,36.56577974]
[1751713439282,5.05648863,148.33,148.3,36.56577974]
[1751713439508,5.05648863,148.32,148.3,36.56577974]
[1751713439809,4.0228639,148.34,148.3,36.56577974]
[1751713439986,5.05663091,148.33,148.3,32.74291584]
[1751713440306,5.05663091,148.32,148.3,32.74291584]
[1751713440506,4.0228639,148.34,148.3,32.74291584]
[1751713440709,5.05672063,148.33,148.3,32.74291584]
[1751713441005,5.05672063,148.32,148.3,32.74291584]
[1751713441205,4.0228639,148.34,148.3,32.74291584]
[1751713441386,5.05682685,148.33,148.3,32.74291584]
[1751713441588,5.05682685,148.32,148.3,32.74291584]
[1751713441802,4.0228639,148.34,148.3,32.74291584]
[1751713442005,5.05689066,148.33,148.3,32.74291584]
[1751713442205,5.05689066,148.32,148.3,32.74291584]
[1751713442406,4.0228639,148.34,148.3,32.74291584]
[1751713442609,5.05707449,148.33,148.3,32.74291584]
[1751713442783,5.05707449,148.32,148.3,32.74291584]
[1751713442982,3.8228639,148.33,148.3,32.74291584]
[1751713443183,5.05707617,148.32,148.3,32.74291584]
[1751713443405,3.8228639,148.33,148.3,32.74291584]
[1751713443599,5.05727541,148.32,148.3,32.74291584]
[1751713443805,3.8228639,148.33,148.3,32.74291584]
[1751713444101,5.05727541,148.32,148.3,32.74291584]
[1751713444307,3.8228639,148.33,148.3,32.74291584]
[1751713444504,5.05748839,148.32,148.3,32.74291584]
[1751713444681,3.8228639,148.33,148.3,32.74291584]
[1751713444885,5.05748839,148.32,148.3,32.74291584]
[1751713445100,3.8228639,148.33,148.3,32.74291584]
[1751713445280,5.05754256,148.32,148.3,32.74291584]
[1751713445485,3.8228639,148.33,148.3,32.74291584]
[1751713445703,5.05762953,148.32,148.3,32.74291584]
[1751713445906,3.8228639,148.33,148.3,32.74291584]
[1751713446112,5.05762953,148.32,148.3,32.74291584]
[1751713446312,3.8228639,148.33,148.3,32.74291584]
[1751713446512,5.05778256,148.32,148.3,32.74291584]
[1751713446688,3.8228639,148.33,148.3,32.74291584]
[1751713446889,5.05778424,148.32,148.3,32.74291584]
[1751713447088,3.8228639,148.33,148.3,32.74291584]
[1751713447299,5.05783394,148.32,148.3,32.74291584]
[1751713447604,3.8228639,148.33,148.3,32.74291584]
[1751713447803,5.0579498,148.32,148.3,32.74291584]
[1751713448104,3.8228639,148.33,148.3,32.74291584]
[1751713448404,5.05799933,148.32,148.3,32.74291584]
[1751713448701,3.8228639,148.33,148.3,32.74291584]
[1751713449004,5.05813197,148.32,148.3,32.74291584]
[1751713449202,3.8228639,148.33,148.3,32.74291584]
[1751713449402,5.05818099,148.32,148.3,32.74291584]
[1751713449610,3.8228639,148.33,148.3,32.74291584]
[1751713449816,5.05833114,148.32,148.3,32.74291584]
[1751713450010,5.05851915,148.31,148.3,32.74291584]
[1751713454409,5.05851915,148.31,148.3,26.0]
[1751713456119,5.05851915,148.31,148.3,32.74308833]
[1751713471632,5.11851915,148.31,148.3,32.74308833]
[1751713515946,5.11935362,148.31,148.3,32.74308833]
[1751713517154,0.06,148.31,148.3,36.56595223]
[1751713522672,0.06,148.31,148.3,55.21560109]
[1751713536707,0.06,148.31,148.3,51.39273719]
[1751713537105,0.06,148.31,148.3,32.74308833]
[1751713541503,0.06,148.31,148.3,55.35776266]
[1751713546908,0.06,148.31,148.3,89.23776266]
[1751713558092,0.06,148.31,148.3,85.41489876]
[1751713558294,0.06,148.31,148.3,89.23776266]
[1751713564750,1e-08,148.31,148.3,63.23776266]
[1751713574848,1e-08,148.31,148.3,59.41489876]
[1751713575055,1e-08,148.31,148.3,63.23776266]
[1751713577455,1e-08,148.31,148.3,25.39273719]
[1751713577661,1e-08,148.31,148.3,59.25273719]
[1751713577848,1e-08,148.31,148.3,51.39273719]
[1751713587767,1e-08,148.31,148.3,32.74308833]
[1751713601854,1e-08,148.31,148.3,51.39273719]
[1751713603991,1e-08,148.31,148.3,55.21560109]
[1751713604960,1e-08,148.31,148.3,55.24560109]
[1751713606673,1e-08,148.31,148.3,51.42273719]
[1751713606871,1e-08,148.31,148.3,55.24560109]
[1751713617198,1e-08,148.31,148.3,51.42273719]
[1751713663129,5.05993152,148.31,148.3,51.42273719]
[1751713667935,1e-08,148.31,148.3,51.42273719]
[1751713668142,5.05999648,148.31,148.3,51.42273719]
[1751713668443,5.06001775,148.31,148.3,51.42273719]
[1751713672547,1e-08,148.31,148.3,51.42273719]
[1751713672720,5.06022293,148.31,148.3,51.42273719]
[1751713685751,1e-08,148.31,148.3,51.42273719]
[1751713685949,5.06054018,148.31,148.3,51.42273719]
[1751713689167,1e-08,148.31,148.3,51.42273719]
[1751713691669,5.0603763,148.31,148.3,51.42273719]
[1751713703876,8.8832402,148.31,148.3,0.03]
[1751713704083,15.62587387,148.31,148.3,0.03]
[1751713704774,15.62587387,148.31,148.24,26.03]
[1751713704968,11.3843887,148.3,148.24,26.03]
[1751713705171,5.06037629,148.29,148.25,6.74535291]
[1751713705366,5.06037629,148.28,148.27,3.8228639]
[1751713705667,3.82286391,148.31,148.27,3.8228639]
[1751713705858,5.05395679,148.3,148.29,18.64964886]
[1751713706064,5.05395679,148.3,148.29,22.47251276]
[1751713706366,1e-08,148.31,148.29,22.47251276]
[1751713706881,1e-08,148.31,148.3,26.0]
[1751713707078,5.05333695,148.31,148.28,32.74399784]
[1751713707283,5.05333694,148.3,148.28,32.74399784]
[1751713707578,3.82286391,148.31,148.28,32.74399784]
[1751713707884,5.0532164,148.3,148.27,6.74432614]
[1751713708187,5.0532164,148.29,148.27,6.74432614]
[1751713708365,3.82286391,148.31,148.27,6.74432614]
[1751713708679,5.05247198,148.3,148.27,6.74432614]
[1751713708978,5.05247198,148.29,148.27,6.74432614]
[1751713709183,3.82286391,148.31,148.27,6.74432614]
[1751713709381,5.05162657,148.3,148.27,6.74432614]
[1751713709586,5.05162657,148.29,148.25,6.74536256]
[1751713709763,5.05162657,148.28,148.25,6.74536256]
[1751713709960,5.05162657,148.27,148.25,6.74536256]
[1751713710161,16.88228531,148.31,148.25,6.74536256]
[1751713710361,5.05210232,148.3,148.25,6.74536256]
[1751713710569,5.05210232,148.29,148.25,6.74536256]
[1751713710784,5.05210232,148.28,148.25,6.74536256]
[1751713710987,5.05210232,148.27,148.25,6.74536256]
[1751713711162,16.88228531,148.31,148.25,6.74536256]
[1751713711363,5.05005032,148.3,148.25,6.74536256]
[1751713711564,5.05005032,148.29,148.25,6.74536256]
[1751713711790,5.05005032,148.28,148.25,6.74536256]
[1751713711963,5.05005032,148.27,148.25,6.74536256]
[1751713712164,6.74309505,148.3,148.25,6.74536256]
[1751713712364,5.04813626,148.29,148.25,6.74536256]
[1751713712564,5.04813626,148.28,148.24,6.77580284]
[1751713712774,5.04813626,148.27,148.24,6.77580284]
[1751713713093,5.04813626,148.26,148.24,0.03]
[1751713713282,1.6195,148.29,148.24,0.03]
[1751713713480,11.78863697,148.28,148.24,0.03]
[1751713713791,5.04457463,148.27,148.24,0.03]
[1751713713997,5.04457463,148.26,148.24,0.03]
[1751713714169,6.74406234,148.28,148.24,0.03]
[1751713714370,5.04457631,148.27,148.24,0.03]
[1751713714590,6.74406234,148.28,148.24,0.03]
[1751713714802,5.04261995,148.27,148.24,0.03]
[1751713715092,6.74406234,148.28,148.24,0.03]
[1751713715290,5.04262162,148.27,148.24,0.03]
[1751713715598,8.3631595,148.29,148.24,0.03]
[1751713715778,5.04093968,148.28,148.24,0.03]
[1751713716093,5.04093968,148.27,148.24,0.03]
[1751713716385,5.04093968,148.28,148.24,0.03]
[1751713716585,5.04093968,148.27,148.24,0.03]
[1751713716789,5.04093968,148.28,148.24,0.03]
[1751713717088,5.04093968,148.27,148.24,0.03]
[1751713717289,5.04093968,148.28,148.24,0.03]
[1751713717475,5.04093968,148.27,148.24,0.03]
[1751713717782,5.04093968,148.28,148.24,0.03]
[1751713717988,5.04093968,148.27,148.24,0.03]
[1751713718285,5.04093968,148.28,148.24,0.03]
[1751713721688,5.04093968,148.28,148.24,3.8528639]
[1751713721888,5.04093968,148.3,148.25,3.8228639]
[1751713722670,5.04093968,148.3,148.26,3.8228639]
[1751713723176,5.04093968,148.3,148.24,18.67964886]
[1751713723177,1e-08,148.31,148.27,29.8228639]
[1751713723485,8.86380359,148.31,148.27,29.8228639]
[1751713723690,3.82286391,148.31,148.28,6.74399784]
[1751713723880,8.86380359,148.31,148.28,6.74399784]
[1751713724081,3.82286391,148.31,148.28,6.74399784]
[1751713724277,8.86380359,148.31,148.28,6.74399784]
[1751713724582,3.82286391,148.31,148.28,6.74399784]
[1751713724772,8.86380359,148.31,148.28,6.74399784]
[1751713725097,3.82286391,148.31,148.28,6.74399784]
[1751713725274,8.86380359,148.31,148.28,6.74399784]
[1751713725475,3.82286391,148.31,148.28,6.74399784]
[1751713725677,8.86380359,148.31,148.28,6.74399784]
[1751713725885,3.82286391,148.31,148.28,6.74399784]
[1751713726075,8.86380359,148.31,148.28,6.74399784]
[1751713726284,3.82286391,148.31,148.28,6.74399784]
[1751713727503,1e-08,148.31,148.28,10.56686174]
[1751713730900,5.04093969,148.31,148.28,10.56686174]
[1751713731288,5.04093969,148.31,148.28,6.74399784]
[1751713735404,1e-08,148.31,148.28,6.74399784]
[1751713739209,1e-08,148.31,148.28,10.56686174]
[1751713739417,5.04110335,148.3,148.28,10.56686174]
[1751713740379,5.04110335,148.3,148.28,6.74399784]
[1751713741388,5.04110335,148.3,148.28,10.56686174]
[1751713742019,5.04164987,148.3,148.28,10.56686174]
[1751713743314,1e-08,148.31,148.28,10.56686174]
[1751713743519,5.04286158,148.3,148.28,10.56686174]
[1751713743688,1e-08,148.31,148.28,10.56686174]
[1751713744014,5.04286158,148.3,148.28,10.56686174]
[1751713744211,1e-08,148.31,148.28,10.56686174]
[1751713744515,5.0435286,148.3,148.28,10.56686174]
[1751713744682,1e-08,148.31,148.28,10.56686174]
[1751713744886,5.0435286,148.3,148.28,10.56686174]
[1751713745087,1e-08,148.31,148.28,10.56686174]
[1751713745288,5.04352692,148.3,148.28,10.56686174]
[1751713745585,1e-08,148.31,148.28,10.56686174]
[1751713745912,5.04423847,148.3,148.28,10.56686174]
[1751713746097,1e-08,148.31,148.28,10.56686174]
[1751713746297,5.04423679,148.3,148.28,10.56686174]
[1751713746488,1e-08,148.31,148.28,10.56686174]
[1751713746683,5.04499451,148.3,148.28,10.56686174]
[1751713746889,1e-08,148.31,148.28,10.56686174]
[1751713747089,5.04499522,148.3,148.28,10.56686174]
[1751713747298,1e-08,148.31,148.28,10.56686174]
[1751713747598,5.04581196,148.3,148.28,10.56686174]
[1751713747798,1e-08,148.31,148.28,10.56686174]
[1751713747998,5.04581125,148.3,148.28,10.56686174]
[1751713748300,1e-08,148.31,148.28,10.56686174]
[1751713748500,5.04669268,148.3,148.28,10.56686174]
[1751713748700,1e-08,148.31,148.28,10.56686174]
[1751713748896,5.04669411,148.3,148.28,10.56686174]
[1751713749101,1e-08,148.31,148.28,10.56686174]
[1751713749314,5.04669339,148.3,148.28,10.56686174]
[1751713749496,1e-08,148.31,148.28,10.56686174]
[1751713749798,5.04681102,148.3,148.28,10.56686174]
[1751713750109,1e-08,148.31,148.28,10.56686174]
[1751713750110,1e-08,148.31,148.28,6.74399784]
[1751713750313,5.04681245,148.3,148.28,6.74399784]
[1751713750516,1e-08,148.31,148.28,6.74399784]
[1751713750727,5.04685941,148.3,148.28,6.74399784]
[1751713750905,1e-08,148.31,148.28,6.74399784]
[1751713751097,5.0468587,148.3,148.28,6.74399784]
[1751713751306,1e-08,148.31,148.28,6.74399784]
[1751713751605,5.04736354,148.3,148.28,6.74399784]
[1751713751805,1e-08,148.31,148.28,6.74399784]
[1751713752113,5.04736451,148.3,148.28,6.74399784]
[1751713752314,1e-08,148.31,148.28,6.74399784]
[1751713752516,5.04755862,148.3,148.28,6.74399784]
[1751713752730,1e-08,148.31,148.28,6.74399784]
[1751713753035,5.04756004,148.3,148.28,6.74399784]
[1751713753214,1e-08,148.31,148.28,6.74399784]
[1751713753416,5.04750994,148.3,148.28,6.74399784]
[1751713753605,1e-08,148.31,148.28,6.74399784]
[1751713753806,5.04750923,148.3,148.28,6.74399784]
[1751713754029,3.82286391,148.31,148.27,32.74427728]
[1751713754206,5.04761447,148.3,148.27,32.74427728]
[1751713754527,5.04761447,148.29,148.27,32.74427728]
[1751713754703,3.82286391,148.31,148.27,32.74427728]
[1751713755013,5.04761937,148.3,148.27,32.74427728]
[1751713755328,5.04761937,148.29,148.27,32.74427728]
[1751713755498,3.82286391,148.31,148.27,32.74427728]
[1751713755701,5.04783517,148.3,148.27,32.74427728]
[1751713755901,5.04783517,148.29,148.27,32.74427728]
[1751713756116,3.82286391,148.31,148.27,32.74427728]
[1751713756332,5.04783853,148.3,148.27,32.74427728]
[1751713756625,5.04783853,148.29,148.27,32.74427728]
[1751713756801,3.82286391,148.31,148.27,32.74427728]
[1751713757000,5.04806037,148.3,148.27,32.74427728]
[1751713757301,5.04806037,148.29,148.27,32.74427728]
[1751713757496,3.82286391,148.31,148.27,32.74427728]
[1751713757715,5.04830051,148.3,148.27,32.74427728]
[1751713757911,5.04830051,148.29,148.27,32.74427728]
[1751713758201,3.82286391,148.31,148.27,32.74427728]
[1751713758397,5.04910368,148.3,148.27,32.74427728]
[1751713758601,5.04910368,148.29,148.27,32.74427728]
[1751713758822,3.82286391,148.31,148.27,32.74427728]
[1751713758998,5.04910368,148.3,148.27,32.74427728]
[1751713759201,5.04910368,148.29,148.27,32.74427728]
[1751713759410,3.82286391,148.31,148.27,32.74427728]
[1751713759708,5.04997904,148.3,148.27,32.74427728]
[1751713759903,5.04997904,148.29,148.27,32.74427728]
[1751713760109,3.82286391,148.31,148.27,32.74427728]
[1751713760331,5.04997568,148.3,148.27,32.74427728]
[1751713760530,5.04997568,148.29,148.27,32.74427728]
[1751713760827,5.04997568,148.28,148.27,32.74427728]